bitfinex-derivatives/quotes_BTCF0:USTF0_20250517
["timestamp","ask_amount","ask_price","bid_price","bid_amount"]
[1747443521561,0.7098018,103420.0,103410.0,0.7260398]
[1747443521949,0.4659218,103420.0,103410.0,0.7260398]
[1747443522145,0.4659218,103420.0,103410.0,0.79785918]
[1747443522359,0.4659218,103420.0,103410.0,0.82935918]
[1747443522550,0.4341211,103420.0,103410.0,1.93165711]
[1747443522752,0.18,103420.0,103410.0,1.96485711]
[1747443522954,0.3733243,103420.0,103410.0,1.96485711]
[1747443523751,0.3733243,103420.0,103410.0,1.89303773]
[1747443523953,0.18,103420.0,103410.0,1.96485711]
[1747443524353,0.0352,103440.0,103410.0,1.85754003]
[1747443524561,0.002,103440.0,103430.0,1.00742301]
[1747443524759,0.195287,103440.0,103430.0,1.44242301]
[1747443525263,0.375287,103440.0,103430.0,1.44242301]
[1747443525658,0.375287,103440.0,103430.0,1.37060363]
[1747443525962,0.375287,103440.0,103430.0,1.15060363]
[1747443526262,0.737487,103440.0,103430.0,0.66980363]
[1747443526463,0.768287,103440.0,103430.0,1.16980363]
[1747443526964,0.598287,103440.0,103430.0,1.16980363]
[1747443528953,0.598287,103440.0,103430.0,0.7564057]
[1747443529266,1.12758638,103440.0,103430.0,0.53]
[1747443529568,1.34758638,103440.0,103430.0,0.53]
[1747443529768,1.34758638,103440.0,103430.0,0.7233057]
[1747443530362,1.66324576,103440.0,103430.0,0.5]
[1747443530567,1.91868792,103440.0,103430.0,0.42326374]
[1747443530961,0.1933057,103430.0,103420.0,0.2252244]
[1747443531161,1.46342508,103430.0,103420.0,0.2252244]
[1747443531459,1.59061308,103430.0,103420.0,0.2252244]
[1747443531854,1.4221057,103430.0,103420.0,0.2252244]
[1747443532061,0.8713057,103430.0,103420.0,0.2569244]
[1747443532255,0.6275057,103430.0,103420.0,0.2569244]
[1747443533767,0.8404057,103430.0,103420.0,0.48099444]
[1747443533959,0.2433,103430.0,103420.0,0.48099444]
[1747443534166,0.4238,103430.0,103420.0,1.43164171]
[1747443534361,0.18,103430.0,103420.0,1.43164171]
[1747443534860,0.18,103430.0,103420.0,1.93164171]
[1747443541672,0.03794628,103440.0,103430.0,0.1933057]
[1747443541870,0.03794628,103440.0,103430.0,1.64490301]
[1747443542171,0.21794628,103440.0,103430.0,1.64490301]
[1747443543775,0.21794628,103440.0,103430.0,1.65461722]
[1747443544074,0.21794628,103440.0,103430.0,2.15461722]
[1747443544773,0.21250412,103440.0,103430.0,2.15461722]
[1747443545577,0.182,103440.0,103430.0,2.15461722]
[1747443545973,0.03050412,103450.0,103440.0,0.193287]
[1747443546171,0.21050412,103450.0,103440.0,1.49382369]
[1747443547879,0.21050412,103450.0,103440.0,1.99382369]
[1747443549082,0.18,103450.0,103440.0,1.63302369]
[1747443549274,0.18,103450.0,103440.0,2.35462369]
[1747443549582,0.18,103450.0,103440.0,2.59822369]
[1747443551281,0.18,103450.0,103440.0,2.52640431]
[1747443555083,0.001,103460.0,103450.0,0.1932685]
[1747443555275,0.001,103460.0,103450.0,1.63360581]
[1747443555480,0.001,103460.0,103450.0,1.44557792]
[1747443555676,0.001,103460.0,103450.0,1.63360581]
[1747443556177,0.181,103460.0,103450.0,1.63360581]
[1747443556375,0.181,103460.0,103450.0,2.13360581]
[1747443556684,0.181,103460.0,103450.0,2.06178643]
[1747443556885,0.181,103460.0,103450.0,2.13360581]
[1747443558077,0.3742498,103460.0,103450.0,1.6802885]
[1747443558276,0.4381498,103460.0,103450.0,1.0294885]
[1747443558472,0.4381498,103460.0,103450.0,0.7559685]
[1747443558676,0.4381498,103460.0,103450.0,1.1167685]
[1747443558881,0.4381498,103460.0,103450.0,0.7559685]
[1747443559080,0.4381498,103460.0,103450.0,1.1167685]
[1747443560177,0.44359196,103460.0,103450.0,1.1167685]
[1747443562279,0.25034216,103460.0,103450.0,1.1167685]
[1747443563678,0.25034216,103460.0,103450.0,1.56858788]
[1747443565788,0.44359196,103460.0,103450.0,1.1967685]
[1747443565990,0.44359196,103460.0,103450.0,1.1167685]
[1747443566179,0.46807146,103460.0,103450.0,1.1167685]
[1747443567890,0.46807146,103460.0,103450.0,1.31023854]
[1747443569388,0.46807146,103460.0,103450.0,1.49826643]
[1747443569589,0.27482166,103460.0,103450.0,1.49826643]
[1747443569791,0.27482166,103460.0,103450.0,1.87826643]
[1747443571080,0.27482166,103460.0,103450.0,1.95008581]
[1747443571991,0.46807146,103460.0,103450.0,1.65826643]
[1747443572185,0.46807146,103460.0,103450.0,1.62826643]
[1747443572385,0.46807146,103460.0,103450.0,1.49826643]
[1747443572583,0.46807146,103460.0,103450.0,1.86826643]
[1747443572790,0.69989084,103460.0,103450.0,1.0866685]
[1747443572985,0.90989084,103460.0,103450.0,0.5326]
[1747443573187,1.51401084,103460.0,103450.0,0.6932684]
[1747443574680,1.51401084,103460.0,103450.0,0.5]
[1747443574887,1.51401084,103460.0,103450.0,0.6932685]
[1747443575096,1.51401084,103460.0,103450.0,0.1932685]
[1747443576892,0.1932684,103450.0,103440.0,0.7868293]
[1747443577095,0.64168778,103450.0,103440.0,0.7868293]
[1747443577590,0.64168778,103450.0,103440.0,0.3699293]
[1747443577591,0.5698684,103450.0,103440.0,0.3699293]
[1747443577894,0.5698684,103450.0,103440.0,0.8699293]
[1747443580002,0.5698684,103450.0,103440.0,0.9018293]
[1747443581192,0.5698684,103450.0,103440.0,0.8699293]
[1747443583901,0.5698684,103450.0,103440.0,0.9028293]
[1747443586405,0.5698684,103450.0,103440.0,1.09085719]
[1747443586605,0.5698684,103450.0,103440.0,1.12365719]
[1747443586807,0.5698684,103450.0,103440.0,1.31712723]
[1747443587002,0.8130284,103450.0,103440.0,1.31712723]
[1747443587597,1.24564778,103450.0,103440.0,1.18768783]
[1747443587796,0.78484778,103450.0,103440.0,0.75262789]
[1747443587998,1.85547578,103450.0,103440.0,0.5317]
[1747443588309,1.85547578,103450.0,103440.0,0.7249871]
[1747443589002,1.75880778,103450.0,103440.0,0.7249871]
[1747443589210,1.41880778,103450.0,103440.0,0.7581871]
[1747443589509,0.7429884,103450.0,103440.0,0.7581871]
[1747443589807,0.7429884,103450.0,103440.0,0.2581871]
[1747443590004,1.1037884,103450.0,103440.0,0.2581871]
[1747443590406,0.75262951,103450.0,103440.0,0.2581871]
[1747443590709,1.19069105,103450.0,103440.0,0.2581871]
[1747443591402,0.82989105,103450.0,103440.0,0.2581871]
[1747443591609,1.19069105,103450.0,103440.0,0.2581871]
[1747443592010,1.28735905,103450.0,103440.0,0.0317]
[1747443592205,1.67800142,103450.0,103440.0,0.2249871]
[1747443594104,2.03880142,103450.0,103440.0,0.0317]
[1747443596497,0.1932864,103440.0,103430.0,0.00193358]
[1747443596811,1.38392516,103440.0,103430.0,0.00193358]
[1747443597106,0.1933051,103430.0,103420.0,0.0628]
[1747443597302,1.30322448,103430.0,103420.0,0.22347004]
[1747443597499,1.30322448,103430.0,103420.0,0.41149793]
[1747443597696,0.1933238,103420.0,103410.0,0.0307]
[1747443597999,0.4476238,103420.0,103410.0,0.63584043]
[1747443598194,0.4476238,103420.0,103410.0,1.13584043]
[1747443598195,0.6276238,103420.0,103410.0,1.13584043]
[1747443598610,0.6276238,103420.0,103410.0,0.94249793]
[1747443599803,0.6276238,103420.0,103410.0,0.74902789]
[1747443600008,0.6276238,103420.0,103410.0,0.94249793]
[1747443600303,0.6276238,103420.0,103410.0,0.97409793]
[1747443600705,0.8276238,103420.0,103410.0,0.97409793]
[1747443600920,0.5176238,103420.0,103410.0,0.97409793]
[1747443601211,0.58944318,103420.0,103410.0,0.97409793]
[1747443601414,0.5176238,103420.0,103410.0,0.97409793]
[1747443601614,0.61394501,103420.0,103410.0,0.97409793]
[1747443601803,0.56394501,103420.0,103410.0,0.69347004]
[1747443602109,0.1933612,103400.0,103390.0,0.00193433]
[1747443602308,1.83294058,103400.0,103390.0,3e-08]
[1747443602504,2.02665658,103400.0,103390.0,3e-08]
[1747443602911,2.02661658,103400.0,103390.0,3e-08]
[1747443603105,0.1933986,103380.0,103370.0,0.0654]
[1747443603310,1.49395736,103380.0,103370.0,0.0325]
[1747443603511,0.1934173,103370.0,103360.0,0.0329]
[1747443603709,1.48595668,103370.0,103360.0,0.0654]
[1747443603918,0.1934361,103360.0,103350.0,0.00193508]
[1747443604107,1.23985548,103360.0,103350.0,0.44613301]
[1747443604607,1.1680361,103360.0,103350.0,0.22246297]
[1747443604801,0.5234361,103360.0,103350.0,1.89220709]
[1747443605214,0.7663961,103360.0,103350.0,1.62693301]
[1747443605515,0.7663961,103360.0,103350.0,0.53443508]
[1747443605516,1.37901548,103360.0,103350.0,0.53443508]
[1747443605712,1.60888686,103360.0,103350.0,0.34339388]
[1747443605918,1.56716748,103360.0,103350.0,0.34339388]
[1747443606214,1.32420748,103360.0,103350.0,0.0312]
[1747443606418,0.1934548,103350.0,103340.0,0.06698712]
[1747443606618,0.9442548,103350.0,103340.0,0.0614]
[1747443606804,1.01607418,103350.0,103340.0,0.0614]
[1747443607311,1.19607418,103350.0,103340.0,0.24942789]
[1747443608615,1.68235418,103350.0,103340.0,0.0614]
[1747443608913,0.1934735,103340.0,103330.0,0.00096773]
[1747443609118,1.23709288,103340.0,103330.0,0.44436566]
[1747443609621,1.23709288,103340.0,103330.0,0.25089562]
[1747443609809,1.26799288,103340.0,103330.0,0.22089562]
[1747443610003,1.26799288,103340.0,103320.0,0.0302]
[1747443610004,0.1934922,103330.0,103320.0,0.0302]
[1747443610205,1.35029938,103330.0,103310.0,0.00193583]
[1747443610414,0.68753028,103320.0,103310.0,0.34356729]
[1747443610613,1.10024966,103320.0,103310.0,0.03213583]
[1747443611122,1.20843028,103320.0,103310.0,0.03213583]
[1747443611616,1.69475028,103320.0,103310.0,0.03213583]
[1747443612016,1.76656966,103320.0,103310.0,0.00193583]
[1747443612315,1.86336166,103320.0,103310.0,3e-08]
[1747443612909,0.1935297,103310.0,103300.0,3e-08]
[1747443613109,1.19884445,103310.0,103300.0,3e-08]
[1747443613319,0.1935484,103300.0,103290.0,1e-07]
[1747443613510,1.37403876,103300.0,103270.0,8e-08]
[1747443613706,0.5543859,103280.0,103270.0,8e-08]
[1747443614014,0.59540528,103280.0,103270.0,0.03210008]
[1747443614309,0.7364859,103280.0,103270.0,0.1500615]
[1747443614511,0.18,103280.0,103270.0,0.49353154]
[1747443614711,0.6165859,103280.0,103270.0,0.56793614]
[1747443614917,0.68840528,103280.0,103270.0,0.70123614]
[1747443615121,0.6165859,103280.0,103270.0,1.06203614]
[1747443615316,0.18,103280.0,103270.0,1.38385552]
[1747443615516,0.6165859,103280.0,103270.0,1.38385552]
[1747443615714,0.3735859,103280.0,103270.0,1.88385552]
[1747443615912,0.3735859,103280.0,103270.0,1.81203614]
[1747443616309,0.44540528,103280.0,103270.0,0.91763154]
[1747443616512,0.61810528,103280.0,103270.0,0.90763154]
[1747443616713,0.5135859,103280.0,103270.0,1.46203614]
[1747443616912,0.5135859,103280.0,103270.0,1.47203614]
[1747443617114,0.5135859,103280.0,103270.0,1.53385552]
[1747443617323,0.6173459,103280.0,103270.0,1.80203614]
[1747443617526,0.3735859,103280.0,103270.0,1.80203614]
[1747443618020,0.6177859,103280.0,103270.0,1.80203614]
[1747443618812,0.18,103280.0,103270.0,1.87385552]
[1747443619018,0.1935682,103290.0,103280.0,0.1935859]
[1747443619319,0.4390697,103300.0,103290.0,0.1935546]
[1747443619520,0.4390697,103300.0,103290.0,0.73818606]
[1747443619719,0.4390697,103300.0,103290.0,0.54463146]
[1747443619916,0.51088908,103300.0,103290.0,0.54463146]
[1747443620125,1.01088908,103300.0,103290.0,0.54463146]
[1747443620317,1.40278908,103300.0,103290.0,0.18116142]
[1747443620525,1.43548908,103300.0,103290.0,0.18116142]
[1747443620825,1.43548908,103300.0,103290.0,0.37463146]
[1747443621928,1.43548908,103300.0,103290.0,0.5303]
[1747443622312,1.43548908,103300.0,103290.0,0.84173146]
[1747443622718,0.82916908,103300.0,103290.0,0.84173146]
[1747443622921,1.31964908,103300.0,103290.0,0.87403146]
[1747443623117,1.68044908,103300.0,103290.0,0.37403146]
[1747443623317,0.1935813,103280.0,103270.0,8e-08]
[1747443623518,1.25432068,103280.0,103270.0,0.22893284]
[1747443623813,1.50056068,103280.0,103270.0,8e-08]
[1747443624017,1.50056068,103280.0,103270.0,0.29393284]
[1747443624229,1.61418346,103280.0,103270.0,0.29393284]
[1747443624524,1.68600284,103280.0,103270.0,0.29393284]
[1747443624715,1.61418346,103280.0,103270.0,0.79393284]
[1747443624916,1.40228346,103280.0,103270.0,0.6829615]
[1747443625129,0.18544216,103280.0,103270.0,1.80015232]
[1747443625825,0.37902346,103280.0,103270.0,1.80015232]
[1747443626027,0.37902346,103280.0,103270.0,1.72833294]
[1747443627518,0.37902346,103280.0,103270.0,0.97393284]
[1747443627720,0.37902346,103280.0,103270.0,1.52833644]
[1747443628226,0.69084284,103280.0,103270.0,0.79393284]
[1747443628427,1.08374284,103280.0,103270.0,0.79393284]
[1747443628619,0.75504284,103280.0,103270.0,0.79393284]
[1747443628920,0.68322346,103280.0,103270.0,0.79393284]
[1747443629126,0.75504284,103280.0,103270.0,0.79393284]
[1747443629516,0.68322346,103280.0,103270.0,0.79393284]
[1747443629726,0.72294284,103280.0,103270.0,0.79393284]
[1747443630423,0.37902346,103280.0,103270.0,1.35473284]
[1747443630624,0.37902346,103280.0,103270.0,1.54833294]
[1747443631017,0.37902346,103280.0,103270.0,1.35473284]
[1747443632021,0.45084284,103280.0,103270.0,1.35473284]
[1747443632216,0.48084284,103280.0,103270.0,0.56500008]
[1747443632425,0.51084284,103280.0,103270.0,0.79393284]
[1747443633524,0.43902346,103280.0,103270.0,0.79393284]
[1747443633728,0.51084284,103280.0,103270.0,0.79393284]
[1747443635026,0.43902346,103280.0,103270.0,0.79393284]
[1747443635327,0.51084284,103280.0,103270.0,1.15473284]
[1747443635534,0.43902346,103280.0,103270.0,1.15473284]
[1747443635830,0.51084284,103280.0,103270.0,1.15473284]
[1747443636929,0.69084284,103280.0,103270.0,1.15473284]
[1747443637125,0.72224284,103280.0,103270.0,1.15473284]
[1747443638127,0.65042346,103280.0,103270.0,1.15473284]
[1747443638334,0.72224284,103280.0,103270.0,1.15473284]
[1747443640738,1.08304284,103280.0,103270.0,0.79393284]
[1747443641037,1.08304284,103280.0,103270.0,0.79696001]
[1747443641336,1.08304284,103280.0,103270.0,0.50302725]
[1747443642027,1.22792284,103280.0,103270.0,0.56672725]
[1747443642228,1.08304284,103280.0,103270.0,0.56672725]
[1747443642430,1.22792284,103280.0,103270.0,0.56370008]
[1747443642931,1.58872284,103280.0,103270.0,0.56370008]
[1747443643426,1.62202284,103280.0,103270.0,0.32000008]
[1747443644430,1.64026444,103280.0,103270.0,0.32000008]
[1747443644637,0.1936198,103260.0,103250.0,0.09346848]
[1747443644835,1.29157856,103260.0,103250.0,0.29220124]
[1747443645030,0.99267856,103260.0,103250.0,0.29220124]
[1747443645239,1.17267856,103260.0,103250.0,0.29220124]
[1747443645436,1.10085918,103260.0,103250.0,0.29220124]
[1747443645634,0.76085918,103260.0,103250.0,0.79220124]
[1747443645831,1.13085918,103260.0,103250.0,0.79220124]
[1747443646226,1.52457918,103260.0,103250.0,0.79220124]
[1747443646431,1.81639856,103260.0,103250.0,0.79220124]
[1747443646636,1.74457918,103260.0,103250.0,0.79220124]
[1747443646945,1.81639856,103260.0,103250.0,0.79220124]
[1747443647241,1.84779856,103260.0,103250.0,0.79220124]
[1747443648243,1.83779856,103260.0,103250.0,0.79220124]
[1747443649536,0.1936563,103240.0,103230.0,3e-08]
[1747443649836,0.193675,103230.0,103220.0,0.03325304]
[1747443650034,1.17111376,103230.0,103220.0,0.2621858]
[1747443650343,0.53849438,103230.0,103220.0,0.2621858]
[1747443650636,0.88849438,103230.0,103220.0,0.2621858]
[1747443650826,1.24929438,103230.0,103220.0,0.2621858]
[1747443651029,0.53849438,103230.0,103220.0,0.2621858]
[1747443651229,1.20929438,103230.0,103220.0,0.2621858]
[1747443651443,1.28111376,103230.0,103220.0,0.2621858]
[1747443651626,1.28111376,103230.0,103220.0,0.14277134]
[1747443651941,1.28111376,103230.0,103220.0,0.64277134]
[1747443652334,1.28111376,103230.0,103220.0,0.76073276]
[1747443652535,1.137475,103230.0,103220.0,0.76073276]
[1747443652733,1.28111376,103230.0,103220.0,0.76073276]
[1747443652932,1.137475,103230.0,103220.0,0.76073276]
[1747443653143,0.916495,103230.0,103220.0,1.16153276]
[1747443653437,0.406375,103230.0,103220.0,1.02702656]
[1747443653631,0.373675,103230.0,103220.0,1.41872656]
[1747443654035,0.373675,103230.0,103220.0,1.22503276]
[1747443654236,0.373675,103230.0,103220.0,0.86423276]
[1747443654845,0.44549438,103230.0,103220.0,0.82423276]
[1747443655135,0.47569438,103230.0,103220.0,0.82423276]
[1747443657344,0.403875,103230.0,103220.0,0.82423276]
[1747443657545,0.48569438,103230.0,103220.0,0.82423276]
[1747443657947,0.48569438,103230.0,103220.0,0.82452997]
[1747443658843,0.413875,103230.0,103220.0,0.82452997]
[1747443659746,0.413875,103230.0,103220.0,1.18532997]
[1747443660239,0.403875,103230.0,103220.0,1.37902367]
[1747443660442,0.373675,103230.0,103220.0,1.37902367]
[1747443661149,0.373675,103230.0,103220.0,1.44902367]
[1747443661346,0.373675,103230.0,103220.0,1.77084305]
[1747443661347,0.18,103230.0,103220.0,1.77084305]
[1747443661551,0.3736749,103230.0,103220.0,1.69902367]
[1747443661741,0.3736749,103230.0,103220.0,1.69900987]
[1747443662242,0.1936749,103230.0,103220.0,1.69900987]
[1747443663150,0.3736749,103230.0,103220.0,1.69900987]
[1747443665842,0.37911706,103230.0,103220.0,1.69900987]
[1747443667055,0.45093644,103230.0,103220.0,1.07820957]
[1747443667242,0.48173644,103230.0,103220.0,0.65559721]
[1747443667551,0.83435582,103230.0,103220.0,0.56299721]
[1747443667854,0.86505582,103230.0,103220.0,0.56299721]
[1747443668050,1.48229582,103230.0,103220.0,0.50029721]
[1747443669052,1.49701722,103230.0,103220.0,0.50029721]
[1747443669249,1.49701722,103230.0,103220.0,0.00029721]
[1747443669840,1.75001722,103230.0,103220.0,0.00029721]
[1747443670656,1.60637846,103230.0,103220.0,0.00029721]
[1747443670856,1.75001722,103230.0,103220.0,0.00029721]
[1747443673249,1.64894219,103230.0,103220.0,0.00029721]
[1747443673455,1.79258095,103230.0,103220.0,0.00029721]
[1747443673954,1.64894219,103230.0,103220.0,0.00029721]
[1747443674160,1.79258095,103230.0,103220.0,0.00029721]
[1747443674857,1.48236157,103230.0,103220.0,0.00029721]
[1747443675159,0.96132157,103230.0,103220.0,0.06179721]
[1747443675362,1.54216157,103230.0,103220.0,0.06179721]
[1747443676162,1.22216157,103230.0,103220.0,0.06179721]
[1747443676459,1.22216157,103230.0,103220.0,0.95520957]
[1747443676460,0.51398079,103230.0,103220.0,0.95520957]
[1747443676657,0.71308079,103230.0,103220.0,0.87753823]
[1747443676856,0.71308079,103230.0,103220.0,0.98850957]
[1747443677162,0.45248079,103230.0,103220.0,1.48850957]
[1747443677461,0.43423919,103230.0,103220.0,1.48850957]
[1747443680655,0.50605857,103230.0,103220.0,1.29482997]
[1747443680859,0.60805857,103230.0,103220.0,0.79072997]
[1747443681457,0.54231973,103230.0,103220.0,0.79072997]
[1747443681866,0.61413911,103230.0,103220.0,0.79072997]
[1747443682948,0.61413911,103230.0,103220.0,1.15152997]
[1747443683862,0.54413911,103230.0,103220.0,1.34520947]
[1747443684067,0.80445911,103230.0,103220.0,1.34520947]
[1747443685061,0.80445911,103230.0,103220.0,1.15152997]
[1747443685864,0.79244,103230.0,103220.0,1.15152997]
[1747443687563,0.76044,103230.0,103220.0,1.34521057]
[1747443687771,0.76044,103230.0,103220.0,1.58521057]
[1747443687972,0.51467813,103230.0,103220.0,1.58521057]
[1747443689660,0.44285875,103230.0,103220.0,1.58521057]
[1747443692663,0.20382572,103230.0,103220.0,1.65702995]
[1747443693169,0.02382572,103230.0,103220.0,1.65702995]
[1747443693964,0.002,103240.0,103230.0,0.1936618]
[1747443694264,0.03240267,103240.0,103230.0,1.71871394]
[1747443694560,0.03240267,103240.0,103230.0,1.97895394]
[1747443695176,0.03240267,103240.0,103230.0,1.90713456]
[1747443695563,0.03240267,103240.0,103230.0,2.40713456]
[1747443696459,0.22604577,103240.0,103230.0,2.40713456]
[1747443696655,0.29786515,103240.0,103230.0,1.25243276]
[1747443696853,0.32976515,103240.0,103230.0,1.25243276]
[1747443697058,0.32976515,103240.0,103230.0,1.80689456]
[1747443697259,0.50976515,103240.0,103230.0,1.24243276]
[1747443697558,0.54186515,103240.0,103230.0,1.24243276]
[1747443697763,0.54186515,103240.0,103230.0,1.37999456]
[1747443697957,0.50976515,103240.0,103230.0,1.37999456]
[1747443698958,0.47936248,103240.0,103230.0,1.37999456]
[1747443699154,0.47936248,103240.0,103230.0,1.01919456]
[1747443699472,0.4075431,103240.0,103230.0,1.37999456]
[1747443699967,0.407543,103240.0,103230.0,1.73999456]
[1747443702166,0.82936238,103240.0,103230.0,0.82553276]
[1747443702357,1.15132238,103240.0,103230.0,0.5644]
[1747443702675,0.95132238,103240.0,103230.0,0.5644]
[1747443703071,0.879503,103240.0,103230.0,0.5644]
[1747443703271,0.879503,103240.0,103230.0,0.9252]
[1747443703565,0.69456238,103240.0,103230.0,0.7580618]
[1747443703764,0.47074,103240.0,103230.0,1.71779456]
[1747443704063,0.4075431,103240.0,103230.0,1.71779456]
[1747443704960,0.3756431,103240.0,103230.0,1.71779456]
[1747443705772,0.4076431,103240.0,103230.0,1.71779456]
[1747443706270,0.43214205,103240.0,103230.0,1.71779456]
[1747443706457,0.43214205,103240.0,103230.0,1.72279456]
[1747443708869,0.43214205,103240.0,103230.0,2.08359456]
[1747443709570,0.43758421,103240.0,103230.0,2.08359456]
[1747443710274,0.41308526,103240.0,103230.0,2.08359456]
[1747443711175,0.20108526,103240.0,103230.0,2.08359456]
[1747443711373,0.00744216,103240.0,103230.0,2.08359456]
[1747443711964,0.20108526,103240.0,103230.0,2.08359456]
[1747443713272,0.41308526,103240.0,103230.0,2.08359456]
[1747443714978,0.18744216,103240.0,103230.0,2.15541394]
[1747443715274,0.00744216,103240.0,103230.0,2.15541394]
[1747443715669,0.00744216,103240.0,103230.0,2.57231394]
[1747443716378,0.00744216,103240.0,103230.0,2.58223086]
[1747443718075,0.00744216,103240.0,103230.0,2.83555086]
[1747443722271,0.00744216,103240.0,103230.0,2.76373148]
[1747443722472,0.00744216,103240.0,103230.0,2.58223086]
[1747443728273,0.04054216,103240.0,103230.0,2.58223086]
[1747443729479,0.04054216,103240.0,103230.0,3.09099086]
[1747443729679,0.04054216,103240.0,103230.0,2.83899086]
[1747443729883,0.04054216,103240.0,103230.0,3.09119086]
[1747443730175,0.04054216,103240.0,103230.0,3.09095086]
[1747443730981,0.04054216,103240.0,103230.0,3.01913148]
[1747443731179,0.04054216,103240.0,103230.0,3.09095086]
[1747443732185,0.22054216,103240.0,103230.0,3.09095086]
[1747443733182,0.4063129,103260.0,103250.0,0.1936244]
[1747443733373,0.4063129,103260.0,103250.0,0.8744244]
[1747443733683,0.4385129,103260.0,103250.0,0.9352244]
[1747443734682,0.4385129,103260.0,103250.0,1.1172244]
[1747443734883,0.4385129,103260.0,103250.0,1.1972244]
[1747443735274,0.4385129,103260.0,103250.0,1.1172244]
[1747443735476,0.4385129,103260.0,103250.0,1.4372244]
[1747443735677,0.46301185,103260.0,103250.0,1.2352244]
[1747443735890,0.46301185,103260.0,103250.0,1.2392244]
[1747443736480,0.56623123,103260.0,103250.0,0.624]
[1747443736686,0.56623123,103260.0,103250.0,0.6976244]
[1747443737483,0.56623123,103260.0,103250.0,1.0584244]
[1747443737788,0.56623123,103260.0,103250.0,1.0544244]
[1747443737991,0.56623123,103260.0,103250.0,1.0876244]
[1747443738485,0.56623123,103260.0,103250.0,1.1276244]
[1747443738987,0.56623123,103260.0,103250.0,1.3776244]
[1747443739285,0.49441185,103260.0,103250.0,1.3776244]
[1747443739586,0.49441185,103260.0,103250.0,1.4081244]
[1747443739784,0.49441185,103260.0,103250.0,1.40837695]
[1747443740179,0.49985401,103260.0,103250.0,1.40837695]
[1747443741188,0.30624111,103260.0,103250.0,1.40837695]
[1747443741388,0.49984681,103260.0,103250.0,1.40837695]
[1747443741589,0.49984681,103260.0,103250.0,1.43847695]
[1747443741888,0.49984681,103260.0,103250.0,1.54944829]
[1747443742186,0.49984681,103260.0,103250.0,1.55643837]
[1747443742384,0.49984681,103260.0,103250.0,1.66740971]
[1747443744491,0.43494681,103260.0,103250.0,1.66740971]
[1747443745189,0.46734681,103260.0,103250.0,1.66740971]
[1747443746281,0.46734681,103260.0,103250.0,1.43847695]
[1747443746486,0.53916619,103260.0,103250.0,1.63730971]
[1747443747888,0.46734681,103260.0,103250.0,1.63730971]
[1747443753797,0.53916619,103260.0,103250.0,1.18787695]
[1747443753999,0.53916619,103260.0,103250.0,1.08787695]
[1747443754199,0.69916619,103260.0,103250.0,1.08787695]
[1747443758002,0.62734681,103260.0,103250.0,1.08787695]
[1747443758198,0.69916619,103260.0,103250.0,1.08787695]
[1747443758498,0.69916619,103260.0,103250.0,1.12287695]
[1747443759999,0.71507598,103260.0,103250.0,1.12287695]
[1747443761896,0.71507598,103260.0,103250.0,1.23384829]
[1747443762806,0.71507598,103260.0,103250.0,1.12287695]
[1747443763109,0.71507598,103260.0,103250.0,1.23384829]
[1747443763295,0.71507598,103260.0,103250.0,1.35180971]
[1747443763497,0.4496509,103260.0,103250.0,1.35180971]
[1747443763699,0.2258509,103260.0,103250.0,1.69180971]
[1747443764406,0.4194575,103260.0,103250.0,1.69180971]
[1747443764793,0.4194575,103260.0,103250.0,1.58083837]
[1747443765004,0.4194575,103260.0,103250.0,1.69180971]
[1747443765911,0.2258509,103260.0,103250.0,1.76362909]
[1747443766796,0.2258509,103260.0,103250.0,1.58083837]
[1747443766997,0.2258509,103260.0,103250.0,1.76362909]
[1747443768211,0.2258509,103260.0,103250.0,1.69180971]
[1747443768395,0.18544216,103260.0,103250.0,1.76362909]
[1747443768999,0.18544216,103260.0,103250.0,1.69180971]
[1747443769700,0.37904886,103260.0,103250.0,1.52180971]
[1747443769906,0.44394886,103260.0,103250.0,1.52180971]
[1747443771611,0.51576824,103260.0,103250.0,1.52180971]
[1747443771810,0.51576824,103260.0,103250.0,1.41083837]
[1747443772115,0.53576824,103260.0,103250.0,1.12287695]
[1747443772303,0.56617091,103260.0,103250.0,1.12287695]
[1747443773403,0.54617091,103260.0,103250.0,1.12287695]
[1747443775013,0.47435153,103260.0,103250.0,1.23384829]
[1747443775315,0.48435722,103260.0,103250.0,1.24384829]
[1747443775519,0.5561766,103260.0,103250.0,1.24384829]
[1747443776414,0.5561766,103260.0,103250.0,1.36180971]
[1747443776915,0.22585052,103260.0,103250.0,1.78362909]
[1747443778213,0.22585052,103260.0,103250.0,2.03362909]
[1747443779418,0.22585052,103260.0,103250.0,1.78362909]
[1747443779613,0.22585052,103260.0,103250.0,1.71180971]
[1747443779813,0.18544216,103260.0,103250.0,1.71180971]
[1747443780118,0.41174896,103260.0,103250.0,1.71180971]
[1747443780317,0.21814216,103260.0,103250.0,1.71180971]
[1747443780618,0.1936443,103240.0,103230.0,0.00193733]
[1747443780918,0.1936818,103220.0,103210.0,0.06866885]
[1747443781117,0.85570118,103220.0,103210.0,0.03586885]
[1747443781324,1.10300118,103220.0,103210.0,0.03586885]
[1747443781621,1.0311818,103220.0,103210.0,0.03586885]
[1747443781920,1.10300118,103220.0,103210.0,0.22956945]
[1747443782123,1.10300118,103220.0,103210.0,0.03786885]
[1747443782713,1.10300118,103220.0,103210.0,0.53786885]
[1747443783619,1.10300118,103220.0,103210.0,0.73156945]
[1747443783818,0.9405818,103220.0,103210.0,0.76736945]
[1747443784008,0.4409818,103220.0,103210.0,0.84736945]
[1747443784212,0.6905018,103220.0,103210.0,1.50914079]
[1747443784412,0.6905018,103220.0,103210.0,1.54354079]
[1747443784413,0.71503975,103220.0,103210.0,1.54354079]
[1747443784823,0.71503975,103220.0,103210.0,1.18274079]
[1747443785019,0.46551975,103220.0,103210.0,1.18973087]
[1747443785321,0.96487975,103220.0,103210.0,1.66150221]
[1747443786020,0.97032191,103220.0,103210.0,1.66150221]
[1747443786721,1.04214129,103220.0,103210.0,1.30070221]
[1747443786917,1.04214129,103220.0,103210.0,1.18274079]
[1747443787421,1.04214129,103220.0,103210.0,1.30070221]
[1747443787621,0.97032191,103220.0,103210.0,1.30070221]
[1747443788512,1.04214129,103220.0,103210.0,0.63366885]
[1747443788718,1.08760334,103220.0,103210.0,0.82736945]
[1747443789918,1.01514396,103220.0,103210.0,0.93834079]
[1747443790224,0.44642396,103220.0,103210.0,1.33564079]
[1747443790423,0.69490396,103220.0,103210.0,1.45360221]
[1747443790622,0.69490396,103220.0,103210.0,1.75360221]
[1747443790922,0.69490396,103220.0,103210.0,1.03280221]
[1747443791119,0.69490396,103220.0,103210.0,0.88834079]
[1747443791120,0.76672334,103220.0,103210.0,0.88834079]
[1747443791322,0.76672334,103220.0,103210.0,0.87834079]
[1747443792511,1.37752334,103220.0,103210.0,0.53786885]
[1747443792714,1.01672334,103220.0,103210.0,0.53786885]
[1747443792911,1.37752334,103220.0,103210.0,0.73156945]
[1747443797328,1.01672334,103220.0,103210.0,0.76576945]
[1747443797925,0.69642396,103220.0,103210.0,0.87674079]
[1747443798225,0.44642396,103220.0,103210.0,1.21674079]
[1747443798528,0.69426396,103220.0,103210.0,1.69550221]